fUST/lending_fUST_20250809
["ID","MTS","AMOUNT","RATE_DAILY","PERIOD"]
[378157105,1754752240404,-460.0,0.00021814,2]
[378157107,1754752240413,-460.0,0.00021814,2]
[378157109,1754752240423,-460.0,0.00021814,2]
[378157112,1754752240433,-460.0,0.00021814,2]
[378157113,1754752240442,-460.0,0.00021814,2]
[378157116,1754752240462,-462.18176434,0.00021814,2]
[378157119,1754752240472,-460.0,0.00021814,2]
[378157121,1754752240482,-460.0,0.00021814,2]
[378157123,1754752240492,-460.0,0.00021814,2]
[378157125,1754752240501,-460.0,0.00021814,2]
[378157127,1754752240511,-1094.79,0.00021814,2]
[378157129,1754752240521,-460.0,0.00021814,2]
[378157131,1754752240531,-590.28,0.00021814,2]
[378157133,1754752240540,-460.0,0.00021814,2]
[378157135,1754752240550,-460.0,0.00021814,2]
[378157137,1754752240560,-460.0,0.00021814,2]
[378157139,1754752240570,-894.76034216,0.00021815,2]
[378157141,1754752240580,-168.04263896,0.00021815,2]
[378157143,1754752240590,-894.76034216,0.00021815,2]
[378157145,1754752240600,-894.76034216,0.00021815,2]
[378157147,1754752240610,-894.76034216,0.00021815,2]
[378157149,1754752240620,-894.76034216,0.00021815,2]
[378157151,1754752240629,-894.76034216,0.00021815,2]
[378157153,1754752240639,-894.76034216,0.00021815,2]
[378157155,1754752240649,-894.76034216,0.00021815,2]
[378157157,1754752240659,-894.76034216,0.00021815,2]
[378157159,1754752240669,-894.76034216,0.00021815,2]
[378157161,1754752240679,-894.76034216,0.00021815,2]
[378157163,1754752240689,-912.65554901,0.00021815,2]
[378157165,1754752240699,-912.65554901,0.00021815,2]
[378157167,1754752240708,-912.65554901,0.00021815,2]
[378157169,1754752240718,-912.65554901,0.00021815,2]
[378157171,1754752240728,-912.65554901,0.00021815,2]
[378157173,1754752240738,-912.65554901,0.00021815,2]
[378157175,1754752240748,-906.95145182,0.00021815,2]
[378157177,1754752240758,-906.95145182,0.00021815,2]
[378157179,1754752240767,-906.95145182,0.00021815,2]
[378157181,1754752240777,-906.95145182,0.00021815,2]
[378157183,1754752240787,-906.95145182,0.00021815,2]
[378157185,1754752240797,-906.95145182,0.00021815,2]
[378157187,1754752240806,-906.95145182,0.00021815,2]
[378157189,1754752240815,-1608.64546983,0.00021815,2]
[378157191,1754752240826,-510.843588,0.00021815,2]
[378157193,1754752240836,-460.0,0.00021815,2]
[378157195,1754752240845,-1278.6,0.00021815,2]
[378157197,1754752240855,-460.0,0.00021815,2]
[378157199,1754752240865,-1787.57,0.00021815,2]
[378157201,1754752240875,-1787.57,0.00021815,2]
[378157203,1754752240884,-1787.57,0.00021815,2]
[378157205,1754752240894,-1787.57,0.00021815,2]
[378157207,1754752240903,-1787.57,0.00021815,2]
[378157209,1754752240913,-1787.57,0.00021815,2]
[378157211,1754752240923,-1787.57,0.00021815,2]
[378157213,1754752240932,-1787.57,0.00021815,2]
[378157215,1754752240941,-1787.57,0.00021815,2]
[378157217,1754752240951,-1787.57,0.00021815,2]
[378157219,1754752240961,-1787.57,0.00021815,2]
[378157221,1754752240971,-1787.57,0.00021815,2]
[378157223,1754752240980,-1787.57,0.00021815,2]
[378157225,1754752240990,-1787.57,0.00021815,2]
[378157227,1754752240999,-1787.57,0.00021815,2]
[378157229,1754752241008,-1787.57,0.00021815,2]
[378157231,1754752241018,-1787.57,0.00021815,2]
[378157233,1754752241027,-1787.57,0.00021815,2]
[378157235,1754752241037,-1787.57,0.00021815,2]
[378157237,1754752241046,-1787.74869021,0.00021815,2]
[378157239,1754752241056,-1182.16,0.00021815,2]
[378157241,1754752241066,-460.0,0.00021815,2]
[378157243,1754752241075,-653.18,0.00021815,2]
[378157245,1754752241085,-1474.22908551,0.00021816,2]
[378157247,1754752241094,-370000.0,0.00021816,2]
[378157249,1754752241104,-1526.3310346,0.00021817,2]
[378157251,1754752241114,-1526.33103456,0.00021886,2]
[378157253,1754752241127,-460.0,0.00021917,2]
[378157255,1754752241137,-460.0,0.00021917,2]
[378157257,1754752241147,-460.0,0.00021917,2]
[378157259,1754752241167,-460.0,0.00021917,2]
[378157261,1754752241176,-460.0,0.00021917,2]
[378157263,1754752241186,-460.0,0.00021917,2]
[378157265,1754752241197,-460.0,0.00021917,2]
[378157267,1754752241208,-460.0,0.00021917,2]
[378157270,1754752241218,-460.0,0.00021917,2]
[378157272,1754752241228,-460.0,0.00021917,2]
[378157274,1754752241238,-460.0,0.00021917,2]
[378157276,1754752241248,-460.0,0.00021917,2]
[378157278,1754752241258,-460.0,0.00021917,2]
[378157279,1754752241267,-460.0,0.00021917,2]
[378157282,1754752241277,-468.70343659,0.00021917,2]
[378157283,1754752241287,-227.23214898,0.00021917,2]
[378157286,1754752241297,-460.0,0.00021917,2]
[378157288,1754752241307,-460.0,0.00021917,2]
[378157290,1754752241316,-460.0,0.00021917,2]
[378157292,1754752241326,-460.0,0.00021917,2]
[378157294,1754752241335,-460.0,0.00021917,2]
[378157296,1754752241345,-460.0,0.00021917,2]
[378157297,1754752241355,-460.0,0.00021917,2]
[378157300,1754752241365,-460.0,0.00021917,2]
[378157302,1754752241374,-460.0,0.00021917,2]
[378157304,1754752241384,-460.0,0.00021917,2]
[378157306,1754752241394,-460.0,0.00021917,2]
[378157308,1754752241403,-460.0,0.00021917,2]
[378157310,1754752241413,-240.04217954,0.00021917,2]
[378157312,1754752241423,-460.0,0.00021917,2]
[378157314,1754752241432,-460.0,0.00021917,2]
[378157316,1754752241442,-460.0,0.00021917,2]
[378157318,1754752241452,-460.0,0.00021917,2]
[378157320,1754752241462,-460.0,0.00021917,2]
[378157322,1754752241472,-460.0,0.00021917,2]
[378157324,1754752241481,-466.2050307,0.00021917,2]
[378157326,1754752241491,-460.0,0.00021917,2]
[378157328,1754752241500,-575.35883441,0.00021917,2]
[378157329,1754752241510,-460.0,0.00021917,2]
[378157331,1754752241520,-460.0,0.00021917,2]
[378157346,1754752241679,-460.0,0.00021917,2]
[378157347,1754752241712,-460.0,0.00021917,2]
[378157348,1754752241722,-460.0,0.00021917,2]
[378157349,1754752241732,-460.0,0.00021917,2]
[378157350,1754752241742,-460.0,0.00021917,2]
[378157351,1754752241752,-460.0,0.00021917,2]
[378157352,1754752241762,-460.0,0.00021917,2]
[378157353,1754752241771,-460.0,0.00021917,2]
[378157354,1754752241781,-460.0,0.00021917,2]
[378157355,1754752241791,-460.0,0.00021917,2]
[378157356,1754752241801,-460.0,0.00021917,2]
[378157357,1754752241811,-460.0,0.00021917,2]
[378157359,1754752241821,-460.0,0.00021917,2]
[378157361,1754752241830,-493.76967123,0.00021917,2]
[378157362,1754752241840,-460.0,0.00021917,2]
[378157364,1754752241849,-460.0,0.00021917,2]
[378157367,1754752241859,-460.0,0.00021917,2]
[378157368,1754752241869,-460.0,0.00021917,2]
[378157370,1754752241878,-460.0,0.00021917,2]
[378157373,1754752241889,-460.0,0.00021917,2]
[378157375,1754752241898,-460.0,0.00021917,2]
[378157376,1754752241908,-460.0,0.00021917,2]
[378157377,1754752241918,-460.0,0.00021917,2]
[378157378,1754752241927,-460.0,0.00021917,2]
[378157379,1754752241937,-460.0,0.00021917,2]
[378157380,1754752241946,-460.0,0.00021917,2]
[378157381,1754752241956,-460.0,0.00021917,2]
[378157382,1754752241966,-500.0,0.00021917,2]
[378157383,1754752241975,-460.0,0.00021917,2]
[378157384,1754752241984,-460.0,0.00021917,2]
[378157385,1754752241993,-460.0,0.00021917,2]
[378157386,1754752242003,-460.0,0.00021917,2]
[378157387,1754752242012,-460.0,0.00021917,2]
[378157388,1754752242022,-460.0,0.00021917,2]
[378157389,1754752242031,-460.0,0.00021917,2]
[378157390,1754752242046,-460.0,0.00021917,2]
[378157391,1754752242056,-552.27,0.00021917,2]
[378157392,1754752242065,-460.0,0.00021917,2]
[378157393,1754752242075,-460.0,0.00021917,2]
[378157394,1754752242085,-460.0,0.00021917,2]
[378157395,1754752242095,-460.0,0.00021917,2]
[378157396,1754752242109,-460.0,0.00021917,2]
[378157397,1754752242125,-460.0,0.00021917,2]
[378157398,1754752242134,-2003.86,0.00021917,2]
[378157399,1754752242144,-460.0,0.00021928,2]
[378157400,1754752242153,-460.0,0.00021928,2]
[378157401,1754752242163,-460.0,0.00021928,2]
[378157402,1754752242172,-460.0,0.00021928,2]
[378157403,1754752242182,-927.6,0.00021928,2]
[378157404,1754752242191,-460.0,0.00021928,2]
[378157405,1754752242201,-460.0,0.00021928,2]
[378157407,1754752242211,-460.0,0.00021928,2]
[378157409,1754752242221,-200.0,0.00021941,15]
[378157411,1754752242230,-200.0,0.00021941,15]
[378157413,1754752242240,-200.0,0.00021941,15]
[378157415,1754752242250,-200.0,0.00021941,15]
[378157417,1754752242259,-200.0,0.00021941,15]
[378157419,1754752242268,-1526.33103456,0.00021954,2]
[378157420,1754752242278,-164.89369169,0.00021973,2]
[378157422,1754752242287,-500.0,0.00021973,2]
[378157423,1754752242297,-232.84258371,0.00021973,2]
[378157424,1754752242307,-500.0,0.00021973,2]
[378157425,1754752242317,-507.42146889,0.00021973,2]
[378157426,1754752242327,-500.0,0.00021973,2]
[378157427,1754752242336,-500.0,0.00021973,2]
[378157428,1754752242346,-500.0,0.00021973,2]
[378157429,1754752242356,-250.0,0.00021973,2]
[378157430,1754752242365,-500.0,0.00021973,2]
[378157431,1754752242375,-500.0,0.00021973,2]
[378157433,1754752242386,-500.0,0.00021973,2]
[378157435,1754752242396,-323.40389411,0.00021973,2]
[378157437,1754752242405,-500.0,0.00021973,2]
[378157438,1754752242415,-331.0374753,0.00021973,2]
[378157439,1754752242425,-500.33812626,0.00021973,2]
[378157440,1754752242434,-250.34670628,0.00021973,2]
[378157441,1754752242444,-152.57967547,0.00021973,2]
[378157442,1754752242454,-1695.6260279,0.0002198,2]
[378157443,1754752242465,-460.0,0.00021989,2]
[378157444,1754752242475,-460.0,0.00021989,2]
[378157445,1754752242485,-460.0,0.00021989,2]
[378157446,1754752242494,-1393.84,0.00021989,2]
[378157447,1754752242503,-460.0,0.00021989,2]
[378157448,1754752242513,-1968.56,0.00021989,2]
[378157449,1754752242523,-40281.21195422,0.0002199,2]
[378157450,1754752242533,-500.0,0.00021991,2]
[378157451,1754752242543,-274.0,0.00021996,2]
[378157452,1754752242553,-219.0,0.00022,2]
[378157453,1754752242563,-168.0,0.00022,2]
[378157454,1754752242574,-555.79,0.00022,2]
[378157455,1754752242583,-1526.33103456,0.00022023,2]
[378157456,1754752242593,-460.0,0.00022061,2]
[378157457,1754752242603,-460.0,0.00022061,2]
[378157458,1754752242613,-933.12,0.00022061,2]
[378157459,1754752242623,-460.0,0.00022061,2]
[378157460,1754752242632,-460.0,0.00022061,2]
[378157461,1754752242641,-586.5,0.00022061,2]
[378157462,1754752242651,-558.54,0.00022061,2]
[378157463,1754752242661,-460.0,0.00022061,2]
[378157464,1754752242671,-504.62,0.00022061,2]
[378157465,1754752242680,-460.0,0.00022061,2]
[378157466,1754752242690,-1024.96,0.00022061,2]
[378157467,1754752242699,-460.0,0.00022061,2]
[378157468,1754752242709,-627.42,0.00022061,2]
[378157469,1754752242720,-1110.64,0.00022061,2]
[378157470,1754752242730,-460.0,0.00022061,2]
[378157471,1754752242740,-759.38,0.00022087,2]
[378157472,1754752242750,-460.0,0.00022087,2]
[378157473,1754752242759,-1708.55,0.00022087,2]
[378157474,1754752242769,-460.0,0.00022087,2]
[378157475,1754752242780,-476.07,0.00022087,2]
[378157476,1754752242789,-460.0,0.00022087,2]
[378157477,1754752242799,-966.51,0.00022087,2]
[378157478,1754752242809,-723.96,0.00022087,2]
[378157479,1754752242818,-470.67233647,0.00022087,2]
[378157480,1754752242827,-460.0,0.00022088,2]
[378157481,1754752242837,-486.80050922,0.00022088,2]
[378157482,1754752242847,-460.0,0.00022088,2]
[378157483,1754752242856,-460.0,0.00022088,2]
[378157484,1754752242866,-460.0,0.00022088,2]
[378157485,1754752242876,-488.50395581,0.00022088,2]
[378157486,1754752242885,-585.07,0.00022088,2]
[378157487,1754752242895,-460.0,0.00022088,2]
[378157488,1754752242906,-460.0,0.00022088,2]
[378157489,1754752242918,-460.0,0.00022088,2]
[378157490,1754752242928,-604.09,0.00022088,2]
[378157491,1754752242938,-460.0,0.00022088,2]
[378157492,1754752242948,-636.19,0.00022088,2]
[378157493,1754752242958,-460.0,0.00022088,2]
[378157494,1754752242970,-523.71,0.00022088,2]
[378157495,1754752242979,-460.0,0.00022088,2]
[378157496,1754752242990,-460.0,0.00022088,2]
[378157497,1754752242999,-460.0,0.00022088,2]
[378157498,1754752243009,-460.0,0.00022088,2]
[378157499,1754752243021,-460.0,0.00022088,2]
[378157500,1754752243030,-460.0,0.00022088,2]
[378157501,1754752243040,-460.0,0.00022088,2]
[378157503,1754752243051,-465.48733202,0.00022088,2]
[378157505,1754752243061,-460.0,0.00022088,2]
[378157506,1754752243071,-460.0,0.00022088,2]
[378157507,1754752243081,-460.0,0.00022088,2]
[378157508,1754752243091,-460.0,0.00022088,2]
[378157509,1754752243101,-460.0,0.00022088,2]
[378157510,1754752243110,-3875.91,0.00022088,2]
[378157511,1754752243124,-460.0,0.00022088,2]
[378157512,1754752243134,-473.23326017,0.00022088,2]
[378157513,1754752243144,-460.0,0.00022088,2]
[378157514,1754752243153,-460.0,0.00022088,2]
[378157515,1754752243165,-460.0,0.00022088,2]
[378157516,1754752243174,-460.0,0.00022088,2]
[378157517,1754752243183,-460.0,0.00022088,2]
[378157518,1754752243194,-460.0,0.00022088,2]
[378157520,1754752243203,-707.92,0.00022088,2]
[378157521,1754752243215,-460.0,0.00022088,2]
[378157522,1754752243225,-460.0,0.00022088,2]
[378157523,1754752243234,-670.59,0.00022088,2]
[378157524,1754752243244,-460.0,0.00022088,2]
[378157525,1754752243254,-507.77,0.00022088,2]
[378157526,1754752243264,-349.14800454,0.00022088,2]
[378157527,1754752243274,-460.0,0.00022088,2]
[378157528,1754752243283,-460.0,0.00022088,2]
[378157529,1754752243293,-460.0,0.00022088,2]
[378157530,1754752243303,-460.0,0.00022088,2]
[378157531,1754752243312,-460.0,0.00022088,2]
[378157532,1754752243322,-460.0,0.00022088,2]
[378157533,1754752243332,-460.0,0.00022088,2]
[378157534,1754752243342,-460.0,0.00022088,2]
[378157535,1754752243351,-1094.79,0.00022088,2]
[378157536,1754752243361,-590.28,0.00022088,2]
[378157537,1754752243371,-460.0,0.00022088,2]
[378157539,1754752243380,-460.0,0.00022088,2]
[378157542,1754752243390,-460.0,0.00022088,2]
[378157543,1754752243400,-460.0,0.00022089,2]
[378157545,1754752243409,-1278.6,0.00022089,2]
[378157546,1754752243418,-460.0,0.00022089,2]
[378157548,1754752243428,-1182.16,0.00022089,2]
[378157550,1754752243438,-460.0,0.00022089,2]
[378157552,1754752243447,-653.18,0.00022089,2]
[378157554,1754752243457,-151.0,0.0002209,2]
[378157556,1754752243469,-151.0,0.0002209,2]
[378157558,1754752243479,-151.0,0.0002209,2]
[378157561,1754752243488,-151.0,0.0002209,2]
[378157563,1754752243498,-151.0,0.0002209,2]
[378157564,1754752243508,-151.0,0.0002209,2]
[378157566,1754752243518,-500.0,0.0002209,2]
[378157568,1754752243528,-151.0,0.0002209,2]
[378157570,1754752243537,-151.0,0.0002209,2]
[378157572,1754752243547,-151.0,0.0002209,2]
[378157574,1754752243556,-151.0,0.0002209,2]
[378157576,1754752243566,-151.0,0.0002209,2]
[378157579,1754752243576,-254.35008074,0.0002209,2]
[378157581,1754752243586,-1526.33103456,0.00022091,2]
[378157582,1754752243596,-460.0,0.00022191,2]
[378157584,1754752243607,-460.0,0.00022191,2]
[378157586,1754752243616,-460.0,0.00022191,2]
[378157589,1754752243629,-460.0,0.00022191,2]
[378157591,1754752243640,-396.29942411,0.00022191,2]
[378157592,1754752243649,-360.3363871,0.00022191,2]
[378157595,1754752243659,-460.0,0.00022191,2]
[378157596,1754752243669,-471.40835693,0.00022191,2]
[378157598,1754752243679,-460.0,0.00022191,2]
[378157600,1754752243688,-460.0,0.00022191,2]
[378157602,1754752243698,-460.0,0.00022191,2]
[378157604,1754752243708,-460.0,0.00022191,2]
[378157606,1754752243719,-460.0,0.00022191,2]
[378157610,1754752243729,-460.0,0.00022191,2]
[378157612,1754752243738,-460.0,0.00022191,2]
[378157613,1754752243748,-460.0,0.00022191,2]
[378157616,1754752243758,-460.0,0.00022191,2]
[378157617,1754752243768,-460.0,0.00022191,2]
[378157618,1754752243777,-460.0,0.00022191,2]
[378157619,1754752243787,-225.82892987,0.00022191,2]
[378157620,1754752243796,-460.0,0.00022191,2]
[378157621,1754752243806,-460.0,0.00022191,2]
[378157622,1754752243816,-460.0,0.00022191,2]
[378157623,1754752243825,-460.0,0.00022191,2]
[378157624,1754752243835,-460.0,0.00022191,2]
[378157625,1754752243844,-460.0,0.00022191,2]
[378157626,1754752243853,-460.0,0.00022191,2]
[378157627,1754752243863,-460.0,0.00022191,2]
[378157628,1754752243872,-460.0,0.00022191,2]
[378157629,1754752243882,-460.0,0.00022191,2]
[378157630,1754752243892,-460.0,0.00022191,2]
[378157631,1754752243901,-460.0,0.00022191,2]
[378157632,1754752243912,-435.95517016,0.00022191,2]
[378157633,1754752243921,-460.0,0.00022191,2]
[378157634,1754752243930,-460.0,0.00022191,2]
[378157635,1754752243940,-460.0,0.00022191,2]
[378157636,1754752243950,-460.0,0.00022191,2]
[378157637,1754752243959,-460.0,0.00022191,2]
[378157638,1754752243969,-460.0,0.00022191,2]
[378157639,1754752243979,-462.7090301,0.00022191,2]
[378157640,1754752243988,-460.0,0.00022191,2]
[378157641,1754752243998,-460.0,0.00022191,2]
[378157642,1754752244007,-460.0,0.00022191,2]
[378157643,1754752244016,-552.27,0.00022191,2]
[378157644,1754752244026,-460.0,0.00022191,2]
[378157645,1754752244035,-585.92818546,0.00022191,2]
[378157646,1754752244045,-460.0,0.00022191,2]
[378157647,1754752244055,-557.56009714,0.00022191,2]
[378157648,1754752244064,-460.0,0.00022191,2]
[378157649,1754752244074,-179.13042368,0.00022191,2]
[378157650,1754752244084,-459.305,0.00022191,2]
[378157651,1754752244094,-293.80265538,0.00022202,2]
[378157652,1754752244104,-460.0,0.00022202,2]
[378157653,1754752244116,-460.0,0.00022202,2]
[378157654,1754752244128,-460.0,0.00022202,2]
[378157655,1754752244171,-927.6,0.00022202,2]
[378157656,1754752244182,-501.01,0.00022202,2]
[378157657,1754752244192,-460.0,0.00022202,2]
[378157658,1754752244203,-348.0,0.00022204,2]
[378157659,1754752244215,-460.0,0.00022263,2]
[378157660,1754752244225,-460.0,0.00022263,2]
[378157661,1754752244235,-1393.84,0.00022263,2]
[378157662,1754752244245,-460.0,0.00022263,2]
[378157663,1754752244255,-1968.56,0.00022263,2]
[378157664,1754752244264,-500.0,0.00022265,2]
[378157665,1754752244274,-460.0,0.00022335,2]
[378157666,1754752244283,-443.34552237,0.00022335,2]
[378157667,1754752244293,-933.12,0.00022335,2]
[378157668,1754752244302,-460.0,0.00022335,2]
[378157669,1754752244312,-224.37148239,0.00022335,2]
[378157670,1754752244321,-586.5,0.00022335,2]
[378157671,1754752244331,-558.54,0.00022335,2]
[378157672,1754752244340,-460.0,0.00022335,2]
[378157673,1754752244349,-504.62,0.00022335,2]
[378157674,1754752244359,-460.0,0.00022335,2]
[378157675,1754752244368,-1024.96,0.00022335,2]
[378157676,1754752244378,-460.0,0.00022335,2]
[378157677,1754752244387,-627.42,0.00022335,2]
[378157678,1754752244397,-1110.64,0.00022335,2]
[378157679,1754752244406,-759.38,0.00022361,2]
[378157680,1754752244415,-460.0,0.00022361,2]
[378157681,1754752244425,-1708.55,0.00022361,2]
[378157682,1754752244435,-460.0,0.00022361,2]
[378157683,1754752244444,-476.07,0.00022361,2]
[378157684,1754752244453,-460.0,0.00022361,2]
[378157685,1754752244470,-966.51,0.00022361,2]
[378157686,1754752244480,-723.96,0.00022361,2]
[378157687,1754752244489,-460.0,0.00022362,2]
[378157688,1754752244499,-460.0,0.00022362,2]
[378157689,1754752244508,-460.0,0.00022362,2]
[378157690,1754752244518,-585.07,0.00022362,2]
[378157691,1754752244527,-460.0,0.00022362,2]
[378157692,1754752244537,-460.0,0.00022362,2]
[378157693,1754752244546,-467.69078397,0.00022362,2]
[378157694,1754752244555,-604.09,0.00022362,2]
[378157695,1754752244565,-460.0,0.00022362,2]
[378157696,1754752244575,-636.19,0.00022362,2]
[378157697,1754752244584,-460.0,0.00022362,2]
[378157698,1754752244593,-523.71,0.00022362,2]
[378157699,1754752244603,-460.0,0.00022362,2]
[378157700,1754752244613,-460.0,0.00022362,2]
[378157701,1754752244624,-460.0,0.00022362,2]
[378157702,1754752244633,-460.0,0.00022362,2]
[378157703,1754752244644,-257.60219491,0.00022362,2]
[378157704,1754752244653,-460.0,0.00022362,2]
[378157705,1754752244663,-460.0,0.00022362,2]
[378157706,1754752244673,-460.0,0.00022362,2]
[378157707,1754752244683,-460.0,0.00022362,2]
[378157708,1754752244692,-590.99528492,0.00022362,2]
[378157709,1754752244702,-3875.91,0.00022362,2]
[378157710,1754752244713,-460.0,0.00022362,2]
[378157711,1754752244723,-460.0,0.00022362,2]
[378157712,1754752244733,-460.0,0.00022362,2]
[378157713,1754752244743,-429.75,0.00022362,2]
[378157714,1754752244752,-460.0,0.00022362,2]
[378157715,1754752244762,-460.0,0.00022362,2]
[378157716,1754752244771,-460.0,0.00022362,2]
[378157717,1754752244780,-707.92,0.00022362,2]
[378157718,1754752244790,-213.2644599,0.00022362,2]
[378157719,1754752244799,-670.59,0.00022362,2]
[378157720,1754752244808,-460.0,0.00022362,2]
[378157721,1754752244819,-507.77,0.00022362,2]
[378157722,1754752244828,-460.0,0.00022362,2]
[378157723,1754752244837,-460.0,0.00022362,2]
[378157724,1754752244847,-460.0,0.00022362,2]
[378157725,1754752244857,-460.0,0.00022362,2]
[378157726,1754752244866,-460.0,0.00022362,2]
[378157727,1754752244876,-460.0,0.00022362,2]
[378157728,1754752244886,-460.0,0.00022362,2]
[378157729,1754752244895,-1094.79,0.00022362,2]
[378157730,1754752244905,-590.28,0.00022362,2]
[378157731,1754752244914,-460.0,0.00022362,2]
[378157732,1754752244924,-460.0,0.00022362,2]
[378157733,1754752244933,-1278.6,0.00022363,2]
[378157734,1754752244942,-460.0,0.00022363,2]
[378157735,1754752244952,-1182.16,0.00022363,2]
[378157736,1754752244962,-460.0,0.00022363,2]
[378157737,1754752244971,-653.18,0.00022363,2]
[378157738,1754752244981,-151.0,0.00022364,2]
[378157739,1754752244991,-151.0,0.00022364,2]
[378157740,1754752245000,-500.0,0.00022364,2]
[378157741,1754752245010,-151.0,0.00022364,2]
[378157742,1754752245019,-151.0,0.00022364,2]
[378157743,1754752245028,-151.0,0.00022364,2]
[378157744,1754752245038,-373.0,0.00022439,2]
[378157745,1754752245047,-460.0,0.00022465,2]
[378157746,1754752245057,-460.0,0.00022465,2]
[378157747,1754752245066,-460.0,0.00022465,2]
[378157748,1754752245075,-460.0,0.00022465,2]
[378157749,1754752245085,-460.0,0.00022465,2]
[378157750,1754752245094,-460.0,0.00022465,2]
[378157751,1754752245104,-460.0,0.00022465,2]
[378157752,1754752245114,-538.71538902,0.00022465,2]
[378157753,1754752245126,-460.0,0.00022465,2]
[378157754,1754752245136,-581.40576508,0.00022465,2]
[378157755,1754752245145,-478.33011525,0.00022465,2]
[378157756,1754752245154,-367.02677627,0.00022465,2]
[378157757,1754752245164,-460.0,0.00022465,2]
[378157758,1754752245174,-571.13,0.00022465,2]
[378157759,1754752245183,-460.0,0.00022465,2]
[378157760,1754752245194,-460.0,0.00022465,2]
[378157761,1754752245203,-460.0,0.00022465,2]
[378157762,1754752245213,-466.0465682,0.00022465,2]
[378157763,1754752245223,-460.0,0.00022465,2]
[378157764,1754752245233,-477.3729841,0.00022465,2]
[378157765,1754752245243,-460.0,0.00022465,2]
[378157766,1754752245252,-460.0,0.00022465,2]
[378157767,1754752245261,-460.0,0.00022465,2]
[378157768,1754752245270,-460.0,0.00022465,2]
[378157769,1754752245280,-460.0,0.00022465,2]
[378157770,1754752245289,-460.0,0.00022465,2]
[378157771,1754752245299,-460.0,0.00022465,2]
[378157772,1754752245308,-460.0,0.00022465,2]
[378157773,1754752245318,-460.0,0.00022465,2]
[378157774,1754752245328,-460.0,0.00022465,2]
[378157775,1754752245338,-552.27,0.00022465,2]
[378157776,1754752245348,-460.0,0.00022465,2]
[378157777,1754752245358,-460.0,0.00022465,2]
[378157778,1754752245367,-460.0,0.00022465,2]
[378157779,1754752245377,-460.0,0.00022476,2]
[378157780,1754752245386,-460.0,0.00022476,2]
[378157781,1754752245396,-460.0,0.00022476,2]
[378157782,1754752245405,-927.6,0.00022476,2]
[378157783,1754752245415,-460.0,0.00022476,2]
[378157784,1754752245425,-1000.0,0.00022521,2]
[378157785,1754752245435,-1000.0,0.00022521,2]
[378157786,1754752245444,-500.0,0.00022521,2]
[378157787,1754752245454,-500.0,0.00022521,2]
[378157788,1754752245464,-460.0,0.00022537,2]
[378157789,1754752245473,-460.0,0.00022537,2]
[378157790,1754752245483,-1393.84,0.00022537,2]
[378157791,1754752245495,-460.0,0.00022537,2]
[378157792,1754752245504,-1968.56,0.00022537,2]
[378157793,1754752245515,-160.0,0.00022565,2]
[378157794,1754752245526,-160.0,0.00022565,2]
[378157795,1754752245536,-842.95011917,0.00022569,2]